bitfinex-derivatives/quotes_ETHF0:USTF0_20250217
["timestamp","ask_amount","ask_price","bid_price","bid_amount"]
[1739772919660,0.74582,2681.5,2681.3,3.95366]
[1739772919863,0.74583,2681.5,2681.3,3.95365]
[1739772920258,1.16299775,2681.7,2681.3,3.2078]
[1739772920469,1.16299775,2681.7,2681.1,0.74591]
[1739772920470,3.02742775,2681.7,2681.1,0.74591]
[1739772920657,3.02742775,2681.7,2681.0,6.48675773]
[1739772920862,3.02742775,2681.7,2681.0,3.2078]
[1739772920863,0.74592,2681.1,2681.0,3.2078]
[1739772921058,4.35372,2681.3,2680.7,3.21339775]
[1739772921367,2.489,2681.3,2680.7,6.49235548]
[1739772921574,0.5571,2681.2,2681.0,3.2078]
[1739772921877,0.74592,2681.1,2681.0,3.2078]
[1739772922174,0.74599,2680.9,2680.7,3.21339775]
[1739772922373,0.5619,2681.1,2680.7,3.21339775]
[1739772922669,0.5619,2681.1,2680.8,0.74598]
[1739772922865,1.30782,2681.1,2680.7,3.95940775]
[1739772923067,0.5619,2681.1,2680.7,3.21339775]
[1739772923272,0.74601,2680.8,2680.7,3.21339775]
[1739772923567,0.74601,2680.8,2680.7,0.00559775]
[1739772923568,3.23501,2680.8,2680.7,0.00559775]
[1739772923772,5.98170231,2680.8,2679.9,0.5562]
[1739772923964,6.48675773,2680.5,2679.8,3.2078]
[1739772924161,0.74619,2680.2,2679.8,3.2078]
[1739772924365,3.0296,2680.4,2679.5,6.48675773]
[1739772924366,0.5915,2680.1,2679.5,6.48675773]
[1739772924560,1.1823,2680.1,2679.5,3.2078]
[1739772924761,1.1823,2680.1,2679.6,7.72005667]
[1739772925169,0.74629,2679.8,2679.5,3.21339775]
[1739772925366,1.28692,2679.7,2679.5,3.21339775]
[1739772925664,0.5406,2679.7,2679.5,0.00559775]
[1739772925870,0.74634,2679.6,2679.5,0.00559775]
[1739772926074,3.23534,2679.6,2679.5,0.00559775]
[1739772926269,5.76795773,2679.6,2679.2,3.2078]
[1739772926474,3.7827,2679.5,2678.9,3.2078]
[1739772926672,1.3231,2679.4,2678.9,3.2078]
[1739772927277,0.74645,2679.3,2678.9,3.2078]
[1739772927477,0.5767,2679.4,2678.9,3.21339775]
[1739772928074,0.7465,2679.1,2678.9,3.21339775]
[1739772928275,0.74648,2679.1,2678.9,3.21339775]
[1739772929577,3.23546,2679.2,2678.9,3.21339775]
[1739772929874,0.74648,2679.1,2678.9,3.21339775]
[1739772930272,2.489,2679.2,2678.9,3.21339775]
[1739772930671,3.7827,2679.5,2678.9,3.21339775]
[1739772930876,2.489,2679.3,2679.0,11.69031563]
[1739772931173,3.7827,2679.5,2679.2,0.74645]
[1739772931379,3.2078,2679.8,2679.4,3.27895773]
[1739772931581,2.489,2679.8,2679.5,0.74637]
[1739772931777,2.489,2679.8,2679.5,8.62201436]
[1739772931978,3.2353,2679.8,2679.5,7.87564436]
[1739772932272,2.489,2679.8,2679.5,7.87564436]
[1739772932575,2.489,2679.8,2679.2,3.2078]
[1739772932779,0.74637,2679.6,2679.2,3.2078]
[1739772932971,3.2353,2679.8,2679.2,3.95424]
[1739772933169,2.489,2679.8,2679.2,3.95424]
[1739772933368,0.74632,2679.7,2679.2,3.95424]
[1739772933569,2.489,2679.8,2679.2,3.2078]
[1739772933973,0.7464,2679.4,2679.2,3.2078]
[1739772934479,5.6968,2679.8,2679.2,3.2078]
[1739772934681,0.74639,2679.5,2679.2,3.2078]
[1739772934877,5.6968,2679.8,2679.2,3.2078]
[1739772934878,0.74642,2679.4,2679.2,3.2078]
[1739772935779,0.74642,2679.3,2679.2,3.2078]
[1739772935984,1.30452,2679.3,2679.2,3.2078]
[1739772936285,0.5581,2679.3,2678.9,3.95991775]
[1739772936781,0.5581,2679.3,2678.9,3.21339775]
[1739772936782,0.74647,2679.2,2678.9,3.21339775]
[1739772936984,0.74649,2679.1,2678.9,3.21339775]
[1739772937179,0.74647,2679.2,2678.9,3.21339775]
[1739772937382,0.74648,2679.1,2678.9,3.21339775]
[1739772938884,0.5581,2679.3,2678.9,3.21339775]
[1739772939083,0.74651,2679.0,2678.9,3.21339775]
[1739772939384,3.23551,2679.0,2678.9,3.21339775]
[1739772941083,3.23551,2679.0,2678.9,0.00559775]
[1739772942477,0.74662,2678.6,2678.5,3.2078]
[1739772942674,0.74666,2678.5,2678.2,1.29243]
[1739772942974,0.74664,2678.6,2678.2,1.29243]
[1739772943679,0.75219775,2678.7,2678.3,0.74668]
[1739772943879,0.00559775,2678.7,2678.4,3.2078]
[1739772944377,0.00559775,2678.7,2678.4,3.95446]
[1739772944785,0.00559775,2678.7,2678.5,0.74663]
[1739772945280,0.00559775,2678.7,2678.4,3.2078]
[1739772945281,0.75220775,2678.7,2678.4,3.95447]
[1739772945481,0.75220775,2678.7,2678.5,0.74665]
[1739772945678,0.74665,2678.5,2678.4,3.2078]
[1739772946783,0.00559775,2678.7,2678.2,0.5457]
[1739772946989,0.74666,2678.5,2678.2,1.29241]
[1739772947587,0.00559775,2678.7,2678.4,3.95446]
[1739772947883,0.00559775,2678.7,2678.4,3.2078]
[1739772948076,0.00559775,2678.7,2678.6,0.74662]
[1739772948483,0.00559775,2678.7,2678.6,8.62199883]
[1739772951485,3.95417,2679.5,2678.8,1.86635]
[1739772951693,3.2078,2679.5,2679.3,0.74642]
[1739772951893,0.74635,2679.6,2679.1,3.2078]
[1739772952187,0.74635,2679.6,2679.3,0.7464]
[1739772952391,3.6268,2679.7,2679.4,0.74638]
[1739772952588,0.5622,2680.1,2679.5,3.2078]
[1739772952794,0.00559775,2679.8,2679.6,0.74633]
[1739772952980,0.00559775,2679.8,2679.5,4.54775]
[1739772953185,0.00559775,2679.8,2679.5,4.55334775]
[1739772953485,0.00559775,2679.8,2679.6,0.74634]
[1739772954489,0.75189775,2679.8,2679.6,0.74634]
[1739772954793,0.00559775,2679.8,2679.6,0.74633]
[1739772954989,0.00559775,2679.8,2679.7,0.74631]
[1739772955292,0.75187775,2679.8,2679.6,0.74633]
[1739772955482,0.00559775,2679.8,2679.6,0.74633]
[1739772955685,0.00559775,2679.8,2679.7,0.74631]
[1739772955886,0.00559775,2679.8,2679.5,3.80699775]
[1739772956191,0.00559775,2679.8,2679.7,0.74631]
[1739772959987,0.00559775,2679.8,2679.7,8.7579778]
[1739772962182,0.75187775,2679.8,2679.7,8.0116678]
[1739772962386,0.75187775,2679.8,2679.6,0.74633]
[1739772963090,0.00559775,2679.8,2679.5,3.21339775]
[1739772963287,0.74634,2679.7,2679.5,3.21339775]
[1739772963488,1.92314,2679.7,2679.5,3.21339775]
[1739772963888,1.92314,2679.7,2679.5,3.95974775]
[1739772964197,1.1768,2679.7,2679.6,0.74634]
[1739772964391,0.00559775,2679.8,2679.7,0.74631]
[1739772964984,0.74631,2679.7,2679.6,7.83356385]
[1739772965189,0.74631,2679.7,2679.5,3.21339775]
[1739772965595,0.74631,2679.7,2679.5,3.95975775]
[1739772966491,0.74634,2679.6,2679.5,3.21339775]
[1739772967096,2.49359775,2679.8,2679.5,3.21339775]
[1739772967394,2.49359775,2679.8,2679.5,3.95974775]
[1739772967395,3.23989775,2679.8,2679.5,3.95974775]
[1739772967590,3.23988775,2679.8,2679.5,3.95974775]
[1739772967797,0.00559775,2679.8,2679.5,3.21339775]
[1739772968000,0.00559775,2679.8,2679.7,0.74631]
[1739772968187,0.00559775,2679.8,2679.5,3.21339775]
[1739772968397,0.00559775,2679.8,2679.7,0.74631]
[1739772969901,0.00559775,2679.8,2679.6,7.88687513]
[1739772969902,0.00559775,2679.8,2679.6,8.63319513]
[1739772970200,0.00559775,2679.8,2679.6,7.88687513]
[1739772970598,0.74634,2679.6,2679.5,0.00559775]
[1739772971191,3.23434,2679.6,2679.5,0.00559775]
[1739772971598,2.488,2679.6,2679.5,0.00559775]
[1739772972303,3.0787,2679.6,2679.5,0.00559775]
[1739772972604,3.82504,2679.6,2679.5,0.00559775]
[1739772972909,1.33704,2679.6,2679.5,0.00559775]
[1739772973904,1.86593,2679.5,2678.9,3.2078]
[1739772974105,2.488,2679.4,2678.9,3.2078]
[1739772974305,0.74647,2679.2,2678.9,3.2078]
[1739772974500,0.74647,2679.2,2678.9,3.95433]
[1739772974798,43.288,2679.4,2678.9,3.2078]
[1739772975004,0.74651,2679.0,2678.9,3.2078]
[1739772975199,43.288,2679.4,2678.9,3.21339775]
[1739772975399,0.7465,2679.1,2678.9,3.21339775]
[1739772975600,44.03441,2679.4,2679.0,0.7465]
[1739772975998,0.74643,2679.3,2678.9,3.21339775]
[1739772976202,0.74643,2679.3,2678.9,3.95991775]
[1739772976505,0.74642,2679.3,2678.9,3.95991775]
[1739772976807,0.74646,2679.2,2678.9,3.95991775]
[1739772977206,0.5992,2679.1,2678.9,3.95991775]
[1739772978000,0.5992,2679.1,2678.9,3.21339775]
[1739772978502,1.6923,2679.5,2679.0,11.18955376]
[1739772978803,1.6923,2679.5,2679.3,0.74641]
[1739772979305,1.6923,2679.5,2679.2,3.2078]
[1739772979501,0.7464,2679.4,2679.2,3.2078]
[1739772979700,1.6923,2679.5,2679.2,3.2078]
[1739772980207,0.74641,2679.4,2679.2,3.2078]
[1739772980401,0.74641,2679.4,2679.2,3.95425]
[1739772980606,0.74641,2679.4,2679.2,3.2078]
[1739772981202,0.74642,2679.4,2679.2,3.2078]
[1739772981707,0.74642,2679.4,2679.2,3.95425]
[1739772982005,0.74642,2679.4,2679.2,3.2078]
[1739772982308,0.74642,2679.3,2679.2,3.2078]
[1739772985610,1.6923,2679.5,2679.2,3.2078]
[1739772985805,0.74642,2679.4,2679.2,3.2078]
[1739772986006,1.6923,2679.5,2679.2,3.2078]
[1739772986007,2.43868,2679.5,2679.2,3.95423]
[1739772986208,40.8,2679.4,2679.2,3.95423]
[1739772986510,0.7464,2679.4,2679.2,3.95423]
[1739772986710,1.6923,2679.5,2679.3,0.74642]
[1739772986911,2.43868,2679.5,2679.3,0.74642]
[1739772987106,1.1104,2679.5,2679.4,0.7464]
[1739772987404,0.55719775,2679.8,2679.6,0.74632]
[1739772987606,0.55719775,2679.8,2679.7,0.74631]
[1739772987607,0.00559775,2679.8,2679.7,0.74631]
[1739772988602,0.00559775,2679.8,2679.7,8.46389046]
[1739772992414,3.83055773,2680.8,2679.7,8.46389046]
[1739772992415,3.0396,2680.8,2679.7,13.71758046]
[1739772992717,3.2078,2680.9,2680.7,0.74602]
[1739772992718,1.88509,2680.9,2680.7,0.74602]
[1739772993422,1.88509,2680.9,2680.6,0.74604]
[1739772993607,46.4958,2681.2,2680.5,3.2078]
[1739772993608,0.00559775,2681.1,2680.5,6.49235548]
[1739772993811,0.00559775,2681.1,2680.6,7.8723284]
[1739772994013,0.75152775,2681.1,2680.9,0.74597]
[1739772994609,0.74595,2681.0,2680.9,0.74597]
[1739772995023,0.74595,2681.0,2680.6,7.8723284]
[1739772995224,0.00559775,2681.1,2680.6,7.8723284]
[1739772995423,0.74597,2681.0,2680.7,0.74602]
[1739772995720,0.75153775,2681.1,2680.6,7.8723284]
[1739772995922,0.00559775,2681.1,2680.9,0.74598]
[1739772996110,0.00559775,2681.1,2680.6,7.8723284]
[1739772996111,0.00559775,2681.1,2681.0,0.74595]
[1739772997723,0.00559775,2681.1,2681.0,8.56103355]
[1739773005941,0.5701,2681.6,2681.5,0.74581]
[1739773006133,0.5701,2681.6,2681.5,4.02476773]
[1739773007425,1.31588,2681.6,2681.5,4.02476773]
[1739773007928,0.5701,2681.6,2681.5,4.02476773]
[1739773008633,1.31588,2681.6,2681.5,4.02476773]
[1739773009026,1.31588,2681.6,2681.5,3.27895773]
[1739773009929,0.74581,2681.5,2681.4,3.2078]
[1739773010236,0.74588,2681.3,2681.1,3.95371]
[1739773010641,0.5701,2681.6,2681.2,7.94146344]
[1739773011141,0.74587,2681.3,2681.2,7.94146344]
[1739773011739,0.74587,2681.3,2681.1,3.2078]
[1739773011740,0.7459,2681.2,2681.1,3.2078]
[1739773012337,0.74589,2681.3,2681.1,3.95372]
[1739773012634,1.3004,2681.2,2681.1,3.2078]
[1739773014039,0.5545,2681.2,2681.1,3.2078]
[1739773014234,0.5545,2681.2,2681.1,3.95372]
[1739773014434,1.30039,2681.2,2681.1,3.2078]
[1739773014734,0.5545,2681.2,2681.1,3.2078]
[1739773014934,1.3004,2681.2,2681.1,3.2078]
[1739773015634,0.5545,2681.2,2681.1,3.95372]
[1739773018739,0.5545,2681.2,2681.1,3.2078]
[1739773018740,1.3004,2681.2,2681.1,3.2078]
[1739773019142,0.5701,2681.6,2681.1,3.2078]
[1739773019344,0.7459,2681.2,2681.1,3.2078]
[1739773019539,0.7459,2681.2,2681.1,3.95372]
[1739773019745,0.7459,2681.2,2681.1,3.2078]
[1739773020439,0.5726,2681.4,2681.1,3.2078]
[1739773020742,0.74589,2681.3,2681.1,3.95371]
[1739773020953,0.74589,2681.3,2681.2,0.7459]
[1739773021345,0.74587,2681.3,2681.2,0.7459]
[1739773021740,1.31845,2681.4,2681.2,0.74587]
[1739773021945,1.31845,2681.4,2681.1,3.2078]
[1739773021946,0.5726,2681.4,2681.1,3.2078]
[1739773022140,0.5726,2681.4,2681.3,8.55226862]
[1739773022448,0.5726,2681.4,2681.3,0.74587]
[1739773022649,1.31847,2681.4,2681.2,4.02483773]
[1739773022947,0.5726,2681.4,2681.3,8.55226862]
[1739773023539,0.5701,2681.6,2681.3,7.80639862]
[1739773023740,0.74581,2681.5,2681.4,0.74583]
[1739773023948,1.1573,2681.6,2681.3,7.80639862]
[1739773024149,0.74584,2681.4,2681.3,7.80639862]
[1739773025247,1.86457,2681.5,2680.8,3.2078]
[1739773025450,3.27895773,2681.3,2680.8,3.2078]
[1739773025753,0.74603,2680.7,2680.6,7.76237298]
[1739773026046,0.74603,2680.7,2680.5,3.21339775]
[1739773026355,1.1785,2680.6,2680.5,3.21339775]
[1739773026853,1.92456,2680.6,2680.5,3.21339775]
[1739773027049,2.48706,2680.6,2680.5,3.21339775]
[1739773027752,1.741,2680.6,2680.5,3.21339775]
[1739773027951,1.741,2680.6,2680.5,3.95948775]
[1739773028150,1.1785,2680.6,2680.5,3.95948775]
[1739773028349,2.485,2681.0,2680.5,11.14774397]
[1739773028350,1.1236,2680.9,2680.5,11.14774397]
[1739773028540,1.86958,2680.9,2680.6,0.74604]
[1739773028945,1.1236,2680.9,2680.5,11.14774397]
[1739773029247,1.86958,2680.9,2680.7,0.74603]
[1739773029454,1.1236,2680.9,2680.5,11.14774397]
[1739773029847,0.74606,2680.6,2680.5,11.14774397]
[1739773030048,0.74606,2680.6,2680.5,3.21339775]
[1739773031750,0.74606,2680.6,2680.5,0.00559775]
[1739773031950,6.43886,2680.6,2680.5,0.00559775]
[1739773033054,11.6928,2680.6,2679.7,8.97175773]
[1739773033359,11.6928,2680.6,2679.7,5.6928]
[1739773033360,0.74626,2679.9,2679.7,5.6928]
[1739773033547,0.74626,2679.9,2679.7,3.2078]
[1739773034159,0.74628,2679.8,2679.7,3.2078]
[1739773034451,0.74628,2679.8,2679.5,21.81689775]
[1739773034452,3.27895773,2679.8,2679.5,0.00559775]
[1739773034658,0.74634,2679.6,2679.5,0.00559775]
[1739773036152,1.32724,2679.6,2679.5,0.00559775]
[1739773036554,0.5809,2679.6,2679.5,0.00559775]
[1739773037051,1.32724,2679.6,2679.5,0.00559775]
[1739773039358,0.74648,2679.1,2679.0,3.2078]
[1739773039659,3.27895773,2679.1,2678.5,3.2078]
[1739773039852,1.0968,2679.0,2678.4,20.676]
[1739773040055,6.7906,2679.0,2678.2,3.2078]
[1739773040253,3.27895773,2678.8,2678.1,1.1406]
[1739773040454,0.74669,2678.4,2678.3,0.00559775]
[1739773041251,1.30249,2678.4,2678.3,0.00559775]
[1739773041647,1.84349,2678.4,2678.3,0.00559775]
[1739773042556,1.6453,2678.4,2678.3,0.00559775]
[1739773042747,2.39197,2678.4,2678.3,0.00559775]
[1739773042953,1.6453,2678.4,2678.3,0.00559775]
[1739773043153,2.39197,2678.4,2678.3,0.00559775]
[1739773043357,1.6453,2678.4,2678.3,0.00559775]
[1739773043658,2.39197,2678.4,2678.3,0.00559775]
[1739773043954,1.6453,2678.4,2678.3,0.00559775]
[1739773044849,1.1043,2678.4,2678.3,0.00559775]
[1739773045152,3.5913,2678.4,2678.3,0.00559775]
[1739773046256,3.5913,2678.4,2678.3,0.75229775]
[1739773046257,0.5485,2678.4,2678.3,0.75229775]
[1739773046655,3.08959775,2678.7,2678.3,0.75229775]
[1739773046857,3.65559775,2678.7,2678.3,0.75229775]
[1739773047054,1.16859775,2678.7,2678.3,0.00559775]
[1739773047254,2.487,2678.6,2678.3,0.00559775]
[1739773047463,2.487,2678.6,2678.4,0.74665]
[1739773047765,0.00559775,2678.7,2678.5,0.74664]
[1739773048152,0.00559775,2678.7,2678.6,0.74662]
[1739773048762,2.487,2679.4,2678.7,1.86647]
[1739773048962,2.487,2679.4,2678.9,3.2078]
[1739773049150,2.487,2679.4,2679.3,0.74642]
[1739773049351,0.5486,2679.5,2679.3,0.74642]
[1739773049555,3.27895773,2679.9,2679.2,3.2078]
[1739773049753,3.27895773,2679.9,2679.6,0.74632]
[1739773049754,3.0356,2679.9,2679.6,0.74632]
[1739773049957,0.00559775,2679.8,2679.5,0.74635]
[1739773050152,0.00559775,2679.8,2679.2,3.2078]
[1739773050457,0.00559775,2679.8,2679.6,0.74633]
[1739773050652,0.00559775,2679.8,2679.3,7.83555356]
[1739773050653,0.00559775,2679.8,2679.4,3.27895773]
[1739773050957,0.00559775,2679.8,2679.7,0.74631]
[1739773051157,0.00559775,2679.8,2679.6,0.74633]
[1739773051755,0.00559775,2679.8,2679.5,7.83555356]
[1739773052059,0.00559775,2679.8,2679.6,0.74634]
[1739773052363,0.00559775,2679.8,2679.5,8.58190356]
[1739773052564,0.74634,2679.6,2679.2,3.2078]
[1739773052766,3.21339775,2679.8,2679.2,3.2078]
[1739773052970,0.74633,2679.7,2679.2,3.95423]
[1739773053763,5.70039775,2679.8,2679.2,3.95423]
[1739773054063,0.74641,2679.4,2678.9,0.5751]
[1739773054265,0.5602,2679.3,2678.8,3.2078]
[1739773054563,0.5602,2679.3,2679.1,0.74647]
[1739773054957,0.5602,2679.3,2678.9,7.88888359]
[1739773055159,3.2078,2679.5,2679.2,0.74643]
[1739773055357,3.2078,2679.5,2679.0,0.5521]
[1739773055969,3.95418,2679.5,2679.0,1.2986]
[1739773056161,0.74641,2679.4,2679.0,0.5521]
[1739773056356,3.2078,2679.5,2679.0,0.5521]
[1739773056556,3.0472,2679.7,2679.3,0.74641]
[1739773056964,3.79354,2679.7,2679.3,0.74641]
[1739773057555,3.0472,2679.7,2679.0,1.1501]
[1739773057762,3.0472,2679.7,2679.0,1.8966]
[1739773057956,0.74641,2679.4,2679.0,1.89661]
[1739773058368,0.74638,2679.5,2679.0,1.1501]
[1739773058575,3.79352,2679.7,2679.3,0.74641]
[1739773058767,3.0472,2679.7,2679.3,0.74641]
[1739773059164,3.0472,2679.7,2679.4,0.74639]
[1739773059468,3.0472,2679.7,2679.3,0.7464]
[1739773059469,3.79352,2679.7,2679.3,0.7464]
[1739773059668,3.79353,2679.7,2679.3,0.7464]
[1739773059972,3.27895773,2679.6,2678.9,3.2078]
[1739773060164,4.02531773,2679.6,2679.3,0.74642]
[1739773060465,0.74637,2679.5,2679.3,0.74642]
[1739773060975,3.27895773,2679.6,2679.0,9.396786]
[1739773060976,0.7464,2679.4,2679.0,9.396786]
[1739773061567,0.7464,2679.4,2679.1,0.74646]
[1739773061768,0.74639,2679.5,2679.2,0.74645]
[1739773062170,3.27895773,2679.6,2679.0,8.650296]
[1739773062475,3.0472,2679.7,2679.1,1.86621]
[1739773062668,3.79354,2679.7,2679.4,0.74638]
[1739773062973,3.0472,2679.7,2679.4,0.74638]
[1739773063171,3.79353,2679.7,2679.4,0.74638]
[1739773063474,3.79351,2679.7,2679.4,0.74638]
[1739773063665,3.79351,2679.7,2679.5,0.74636]
[1739773063866,3.0472,2679.7,2679.4,0.74638]
[1739773064066,3.0472,2679.7,2679.1,0.5852]
[1739773064262,3.2078,2679.6,2679.2,0.74643]
[1739773064473,0.74636,2679.6,2679.3,0.7464]
[1739773064772,3.0472,2679.7,2679.4,0.74638]
[1739773065167,3.0472,2679.7,2679.5,0.74636]
[1739773065366,3.79352,2679.7,2679.5,0.74636]
[1739773065773,3.0472,2679.7,2679.1,0.5852]
[1739773066174,0.74639,2679.5,2679.3,0.74642]
[1739773066374,0.74637,2679.5,2679.3,0.74642]
[1739773066577,3.0472,2679.7,2679.1,0.5852]
[1739773066766,0.74641,2679.4,2679.1,0.74647]
[1739773066973,0.74641,2679.4,2679.2,0.74644]
[1739773067168,0.74638,2679.5,2679.3,0.74642]
[1739773067480,0.7464,2679.4,2679.2,0.74644]
[1739773067674,0.7464,2679.4,2679.0,3.802]
[1739773067975,0.7464,2679.4,2679.2,0.74644]
[1739773068275,0.7464,2679.4,2679.0,3.802]
[1739773068276,0.74639,2679.5,2679.3,0.74641]
[1739773068469,3.0472,2679.7,2679.3,0.74642]
[1739773068667,3.0472,2679.7,2679.0,3.802]
[1739773068867,6.48675773,2679.6,2678.7,27.72305773]
[1739773069068,0.74645,2679.3,2678.8,0.5547]
[1739773069275,0.74645,2679.2,2679.0,0.74648]
[1739773069469,0.74644,2679.3,2679.1,0.74647]
[1739773069667,0.74645,2679.3,2678.8,8.55315691]
[1739773069975,0.7465,2679.1,2678.8,9.29970691]
[1739773070171,0.7465,2679.1,2678.9,0.74653]
[1739773070369,0.7465,2679.1,2678.8,1.30125]
[1739773070568,1.34062,2679.0,2678.7,3.95438]
[1739773070768,0.5941,2679.0,2678.7,3.2078]
[1739773070964,0.5941,2679.0,2678.9,0.74654]
[1739773071165,0.5941,2679.0,2678.7,3.2078]
[1739773071473,1.34062,2679.0,2678.8,0.74655]
[1739773071876,0.5941,2679.0,2678.7,3.2078]
[1739773072080,0.74654,2678.9,2678.7,3.95438]
[1739773072377,0.5941,2679.0,2678.9,0.74654]
[1739773072573,0.74654,2678.9,2678.7,3.95438]
[1739773072773,0.74655,2678.9,2678.7,3.2078]
[1739773073078,0.74656,2678.8,2678.7,3.2078]
[1739773073575,0.74655,2678.9,2678.7,3.2078]
[1739773074176,3.87305773,2679.0,2678.7,3.2078]
[1739773074377,0.74656,2678.8,2678.7,3.2078]
[1739773075269,2.486,2678.9,2678.7,3.2078]
[1739773075978,0.74656,2678.8,2678.7,3.2078]
[1739773076375,41.54656,2678.8,2678.7,3.2078]
[1739773076773,2.486,2678.9,2678.7,3.2078]
[1739773076968,2.486,2678.9,2678.3,3.79389775]
[1739773077173,0.74667,2678.4,2678.3,3.21339775]
[1739773077380,4.02562773,2678.4,2678.3,0.00559775]
[1739773077774,4.02562773,2678.4,2677.7,3.95466]
[1739773077775,0.74678,2678.1,2677.7,3.95466]
[1739773078265,0.5976,2678.0,2677.8,0.74683]
[1739773078464,0.5976,2678.0,2677.7,3.2078]
[1739773079075,0.74683,2677.9,2677.7,3.2078]
[1739773079677,0.5628,2677.8,2677.7,3.2078]
[1739773080075,0.5628,2677.8,2677.6,0.00559775]
[1739773080579,0.74687,2677.7,2677.6,0.00559775]
[1739773080882,3.81667,2677.7,2677.6,0.00559775]
[1739773081772,3.0698,2677.7,2677.6,0.00559775]
[1739773082080,2.486,2677.7,2677.6,0.00559775]
[1739773082572,3.23287,2677.7,2677.6,0.00559775]
[1739773082878,3.84175773,2677.8,2677.6,0.00559775]
[1739773082879,0.5628,2677.8,2677.6,0.75247775]
[1739773083080,0.5628,2677.8,2677.6,0.00559775]
[1739773083383,1.30966,2677.8,2677.6,0.00559775]
[1739773083681,0.5628,2677.8,2677.6,0.00559775]
[1739773084072,0.74687,2677.7,2677.6,0.00559775]
[1739773084474,4.58860773,2677.8,2677.6,0.00559775]
[1739773084677,0.74687,2677.7,2677.6,0.00559775]
[1739773085585,7.79640773,2677.8,2677.6,0.00559775]
[1739773085770,7.04955773,2677.8,2677.6,0.00559775]
[1739773085977,3.7706,2677.8,2677.6,0.00559775]
[1739773086176,4.51745,2677.8,2677.6,0.00559775]
[1739773086477,3.7706,2677.8,2677.6,0.00559775]
[1739773086675,4.51745,2677.8,2677.6,0.00559775]
[1739773086981,0.74687,2677.7,2677.6,0.00559775]
[1739773087573,3.7706,2677.8,2677.6,0.00559775]
[1739773087775,0.74687,2677.7,2677.6,0.00559775]
[1739773088375,7.04955773,2677.8,2677.6,0.00559775]
[1739773088875,0.74687,2677.7,2677.6,0.00559775]
[1739773091176,6.74687,2677.7,2677.6,0.00559775]
[1739773091576,0.74701,2677.3,2677.1,3.2078]
[1739773091771,2.487,2677.2,2677.1,3.2078]
[1739773092081,0.74705,2677.1,2676.7,1.86802]
[1739773092282,0.74706,2677.1,2676.7,1.86804]
[1739773092581,2.487,2677.2,2676.7,1.86804]
[1739773092582,2.487,2677.2,2676.7,1.1209]
[1739773092984,2.487,2677.2,2676.9,0.74709]
[1739773093177,2.487,2677.2,2676.7,1.1209]
[1739773093479,0.74708,2677.0,2676.7,1.86805]
[1739773093676,2.487,2677.2,2676.7,1.1209]
[1739773093888,0.74708,2677.0,2676.7,1.1209]
[1739773094378,0.74708,2677.0,2676.7,1.86804]
[1739773094584,5.6948,2677.2,2676.7,1.1209]
[1739773094781,0.5857,2677.1,2676.6,3.2115318]
[1739773094978,0.5857,2677.1,2676.6,0.0037318]
[1739773094979,3.27895773,2676.8,2676.6,0.0037318]
[1739773095183,3.0774,2676.7,2676.6,0.0037318]
[1739773095479,2.487,2676.7,2676.6,0.0037318]
[1739773095990,3.23415,2676.7,2676.6,0.0037318]
[1739773096190,3.82415,2676.7,2676.6,0.0037318]
[1739773097080,9.82415,2676.7,2676.6,0.0037318]
[1739773097277,3.82415,2676.7,2676.6,0.0037318]
[1739773100281,3.82515,2676.7,2676.6,0.0037318]
[1739773100488,6.35695773,2676.7,2676.6,0.0037318]
[1739773101189,7.10410773,2676.7,2676.6,0.0037318]
[1739773101386,4.61610773,2676.7,2676.6,0.0037318]
[1739773101586,2.488,2676.8,2676.6,0.0037318]
[1739773101788,1.1143,2676.9,2676.6,0.0037318]
[1739773102000,0.74715,2676.7,2676.6,0.0037318]
[1739773102579,4.02610773,2676.7,2676.6,0.0037318]
[1739773105290,3.27895773,2676.7,2676.6,0.0037318]
[1739773105987,4.02610773,2676.7,2676.6,0.0037318]
[1739773107196,7.23390773,2676.7,2676.6,0.0037318]
[1739773114899,6.48675773,2676.7,2676.6,0.0037318]
[1739773115101,3.2078,2676.7,2676.6,0.0037318]
[1739773115399,5.6958,2676.7,2676.6,0.7509118]
[1739773116595,3.2078,2676.7,2676.6,0.7509118]
[1739773117100,3.2078,2676.7,2676.6,0.0037318]
[1739773117298,3.2078,2676.7,2676.6,0.7509118]
[1739773117998,3.2078,2676.7,2676.6,0.0037318]
[1739773119299,3.95495,2676.7,2676.6,0.0037318]
[1739773119497,3.2078,2676.7,2676.6,0.0037318]
[1739773120298,3.2078,2676.7,2676.6,0.7509118]
[1739773120500,3.2078,2676.7,2676.6,0.0037318]
[1739773120694,3.95495,2676.7,2676.6,0.0037318]
[1739773120997,3.2078,2676.7,2676.6,0.0037318]
[1739773121302,3.95495,2676.7,2676.6,0.0037318]
[1739773121600,7.23390773,2676.7,2676.6,0.0037318]
[1739773121801,8.36710773,2676.7,2676.6,0.0037318]
[1739773122096,3.2078,2676.7,2676.6,0.0037318]
[1739773122298,5.6958,2676.7,2676.6,0.7509118]
[1739773123106,5.6958,2676.7,2676.6,0.0037318]
[1739773124303,10.30880773,2676.7,2676.6,0.0037318]
[1739773124506,9.56165773,2676.7,2676.6,0.0037318]
[1739773124695,5.6958,2676.7,2676.6,0.0037318]
[1739773124895,5.6958,2676.7,2676.6,0.5692318]
[1739773125498,9.72190773,2676.7,2676.6,0.0037318]
[1739773125800,8.97475773,2676.7,2676.6,0.0037318]
[1739773126407,5.6958,2676.7,2676.6,0.0037318]
[1739773127909,6.44295,2676.7,2676.6,0.0037318]
[1739773129411,9.72190773,2676.7,2676.6,0.0037318]
[1739773130405,50.52190773,2676.7,2676.6,0.0037318]
[1739773131503,9.72190773,2676.7,2676.6,0.0037318]
[1739773133005,50.52190773,2676.7,2676.6,0.0037318]
[1739773133701,49.77475773,2676.7,2675.8,0.74738]
[1739773133903,0.7473,2676.2,2675.8,0.74738]
[1739773134112,3.2353,2676.2,2675.8,0.74739]
[1739773134306,0.74733,2676.1,2675.8,0.7474]